bitfinex/quotes_ETHUSD_20240714
["timestamp","ask_amount","ask_price","bid_price","bid_amount"]
[1720933839555,0.36067138,3203.9,3202.6,0.70223393]
[1720933839791,1.887,3203.8,3202.5,7.02233925]
[1720933839997,0.60471944,3203.7,3202.5,7.02233925]
[1720933840564,2.3415,3203.6,3202.5,7.02233925]
[1720933840757,0.05471944,3203.5,3202.0,7.02233925]
[1720933841220,0.05471944,3203.5,3202.5,3.12254]
[1720933841362,2.3415,3204.1,3202.6,0.312254]
[1720933841363,0.05471944,3204.0,3202.6,0.312254]
[1720933841558,0.05471944,3204.0,3202.3,1.887]
[1720933841771,9.62560956,3204.7,3202.1,3.12286]
[1720933841772,0.32687842,3204.8,3203.9,5.00814]
[1720933842008,0.32687842,3204.8,3204.4,1.887]
[1720933842212,0.32395812,3205.2,3204.6,3.12049]
[1720933842396,0.32395812,3205.2,3204.7,1.60759622]
[1720933842602,3.45270937,3206.5,3204.7,3.0]
[1720933842767,0.32408997,3205.7,3204.7,3.0]
[1720933842973,0.32408997,3205.7,3204.5,6.12059]
[1720933842974,2.87035604,3205.7,3204.5,6.12059]
[1720933843213,1.887,3206.5,3204.5,3.12059]
[1720933843374,1.887,3206.5,3204.6,3.0]
[1720933843576,1.887,3206.5,3205.0,3.1201]
[1720933843819,1.887,3206.9,3205.0,3.1201]
[1720933843974,1.887,3206.9,3205.1,3.432]
[1720933844178,1.887,3206.9,3205.2,0.06238964]
[1720933844710,0.32694814,3207.0,3205.1,3.31201]
[1720933844711,0.32694814,3207.0,3205.7,3.11942]
[1720933845208,2.3415,3207.4,3205.7,3.11942]
[1720933846317,0.55,3207.3,3205.7,3.11942]
[1720933846613,0.28915,3207.2,3205.8,0.311942]
[1720933847594,0.28915,3207.2,3205.9,0.0623778]
[1720933847813,0.28915,3207.2,3205.8,0.311942]
[1720933847990,0.55,3207.1,3205.1,3.31201]
[1720933848188,2.3415,3206.8,3205.0,3.0]
[1720933848509,2.3415,3206.8,3205.5,3.11961]
[1720933849076,2.3415,3206.8,3205.2,3.11992]
[1720933849389,0.23415,3206.7,3205.3,0.311992]
[1720933849705,3.78415,3206.7,3205.1,6.12002]
[1720933849916,3.78415,3206.7,3205.2,3.11992]
[1720933851480,3.78415,3206.7,3205.3,3.11983]
[1720933851680,3.23415,3206.7,3205.4,3.18210709]
[1720933851921,3.23415,3206.7,3205.6,3.16890312]
[1720933852128,2.3415,3206.8,3205.6,3.16890312]
[1720933852334,0.28915,3207.2,3205.8,3.11934]
[1720933852488,0.28915,3207.2,3205.9,0.06237768]
[1720933852681,0.28915,3207.2,3206.0,0.31817177]
[1720933853479,0.28915,3207.2,3206.1,3.11904]
[1720933853889,0.28915,3207.2,3206.1,3.16832343]
[1720933854415,0.28915,3207.2,3206.1,3.23069526]
[1720933854720,3.0,3207.3,3206.1,3.11904]
[1720933855307,3.0,3207.3,3206.2,0.04919908]
[1720933855718,0.55,3207.2,3206.2,0.04919908]
[1720933856339,0.55,3207.2,3205.8,6.11934]
[1720933856619,0.55,3207.2,3205.8,6.16857378]
[1720933856830,0.355,3207.1,3205.9,0.61685738]
[1720933857501,0.355,3207.1,3206.0,3.1191]
[1720933857705,3.0,3207.3,3206.0,3.1191]
[1720933858917,3.0,3207.3,3206.1,0.04920424]
[1720933859117,2.3415,3207.4,3206.1,0.04920424]
[1720933859324,0.55,3207.3,3205.9,0.61685738]
[1720933859519,0.28915,3207.2,3205.9,0.61685738]
[1720933860334,0.28915,3207.2,3205.9,0.66607019]
[1720933860636,0.28915,3207.2,3206.0,3.11912]
[1720933861440,0.28915,3207.2,3205.9,0.66607019]
[1720933861592,0.28915,3207.2,3205.9,0.04921281]
[1720933862039,0.28915,3207.2,3206.5,0.04911855]
[1720933862220,4.816,3207.0,3206.5,0.04911855]
[1720933862404,4.816,3207.0,3206.4,0.04913602]
[1720933862606,3.55,3206.9,3206.4,0.04913602]
[1720933862802,0.8366,3206.8,3206.4,0.04913602]
[1720933863453,2.299,3207.0,3206.4,0.04913602]
[1720933863609,2.299,3207.6,3206.4,0.04913602]
[1720933863812,0.55,3207.5,3205.9,3.11922]
[1720933864013,0.55,3207.5,3205.4,3.06237476]
[1720933864014,3.55,3207.5,3206.4,0.04917825]
[1720933864211,0.61758066,3207.4,3206.4,0.04917825]
[1720933864651,2.299,3208.1,3206.5,0.06236749]
[1720933864956,0.32673983,3208.3,3206.8,3.11836]
[1720933865244,0.32673983,3208.3,3207.1,3.11804]
[1720933865449,0.32673983,3208.3,3207.2,0.06234997]
[1720933865614,0.32673983,3208.3,3207.3,0.318039]
[1720933866659,0.32673983,3208.3,3207.3,0.38038678]
[1720933866943,0.32673983,3208.3,3207.3,0.318039]
[1720933867534,0.32673983,3208.3,3206.6,2.3629]
[1720933868119,0.55,3208.2,3206.6,2.3629]
[1720933868287,0.55,3208.2,3206.3,0.04907783]
[1720933868288,7.32,3207.9,3206.3,0.04907783]
[1720933868574,3.0,3207.8,3206.2,0.04898449]
[1720933868730,0.3,3207.7,3206.6,3.11849]
[1720933869229,2.299,3208.2,3206.7,3.11846]
[1720933869579,2.93872035,3208.7,3206.9,5.48115]
[1720933869876,0.55,3208.6,3206.9,2.3629]
[1720933870833,3.55,3208.6,3206.9,2.3629]
[1720933871029,0.9162,3208.5,3206.9,2.3629]
[1720933871233,0.55,3208.4,3206.9,2.3629]
[1720933871430,0.55,3208.4,3206.5,3.04881948]
[1720933871890,3.55,3208.4,3206.5,3.0]
[1720933872674,3.55,3208.4,3206.4,5.48158]
[1720933872876,3.55,3208.4,3206.8,0.04876709]
[1720933872877,0.69832,3208.3,3206.8,0.04876709]
[1720933873170,0.55,3208.2,3206.6,0.04880202]
[1720933873386,0.69832,3208.3,3206.6,0.04880202]
[1720933873741,0.55,3208.4,3206.6,0.04880202]
[1720933873956,0.55,3208.5,3206.6,0.04880202]
[1720933874299,0.55,3208.5,3206.6,3.16736202]
[1720933874583,0.55,3208.5,3206.6,3.11856]
[1720933874752,0.55,3208.5,3206.5,7.02052292]
[1720933874954,0.55,3208.5,3206.8,3.11836]
[1720933874955,0.355,3208.4,3206.8,3.11836]
[1720933875147,0.355,3208.4,3206.7,0.04878455]
[1720933875491,0.55,3208.3,3206.7,0.04878455]
[1720933876040,0.55,3208.3,3206.6,3.11853]
[1720933876271,0.55,3208.3,3206.8,0.0488093]
[1720933876470,0.55,3208.3,3207.0,0.04877438]
[1720933877080,2.517,3208.1,3207.0,0.04877438]
[1720933877242,3.55,3208.0,3207.0,0.04877438]
[1720933878191,2.299,3207.9,3206.9,0.04879184]
[1720933878342,2.299,3207.9,3206.8,0.0488093]
[1720933878544,1.1349,3207.8,3206.8,0.0488093]
[1720933878775,4.1349,3207.8,3207.0,0.04877438]
[1720933879158,4.1349,3207.8,3205.9,2.3629]
[1720933879391,2.517,3207.7,3206.7,0.04882676]
[1720933879558,2.299,3207.2,3206.7,0.04882676]
[1720933879762,0.4816,3207.1,3206.7,0.04882676]
[1720933879957,3.4816,3207.1,3206.7,0.04882676]
[1720933880988,0.32681385,3207.0,3205.5,3.11963]
[1720933881787,0.32681385,3207.0,3205.5,0.06237823]
[1720933881997,0.32681385,3207.0,3206.0,2.4206]
[1720933882178,0.32681385,3207.0,3206.1,3.73531134]
[1720933882347,0.32681385,3207.0,3206.2,3.11888]
[1720933882546,0.32681385,3207.0,3206.4,3.11873]
[1720933882773,0.32681385,3207.0,3206.5,3.0]
[1720933883477,0.32681385,3207.0,3206.0,5.53973]
[1720933883478,0.32681385,3207.0,3206.1,6.11905]
[1720933883680,0.32681385,3207.0,3206.2,0.853965]
[1720933884050,0.32681385,3207.0,3206.0,2.4206]
[1720933884483,0.32681385,3207.0,3205.4,2.4206]
[1720933885185,0.32681385,3207.0,3204.9,3.12012]
[1720933885186,0.55,3206.9,3204.9,2.4206]
[1720933885346,2.2646,3206.8,3204.9,2.4206]
[1720933885551,5.2646,3206.8,3205.3,0.06238843]
[1720933885774,5.2646,3206.8,3204.9,2.4206]
[1720933885775,0.52646,3206.7,3205.4,0.70847277]
[1720933886194,3.52646,3206.7,3205.5,0.06238311]
[1720933886359,3.52646,3206.7,3205.5,3.11963]
[1720933886566,0.52646,3206.7,3205.4,0.70847277]
[1720933886765,2.2646,3206.8,3205.4,0.70847277]
[1720933887297,2.2646,3206.8,3205.4,3.82819277]
[1720933887660,2.2646,3206.8,3205.4,0.70847277]
[1720933888163,0.55,3206.7,3205.3,3.0]
[1720933888373,0.55,3206.7,3205.2,7.02233925]
[1720933888594,3.55,3206.7,3204.9,2.4206]
[1720933888802,3.55,3206.7,3204.9,11.66096]
[1720933889109,3.55,3206.7,3205.0,3.12012]
[1720933889270,0.58146,3206.6,3205.1,4.166087]
[1720933890558,0.58146,3206.6,3205.1,1.166087]
[1720933890755,0.58146,3206.6,3204.9,5.54079]
[1720933890993,0.58146,3206.6,3205.0,3.0]
[1720933891889,0.58146,3206.6,3204.9,2.4206]
[1720933891890,0.55,3206.5,3204.9,2.4206]
[1720933892052,3.55,3206.5,3204.9,2.4206]
[1720933892254,0.664846,3206.4,3204.9,2.4206]
[1720933892609,0.55,3206.3,3204.7,3.0]
[1720933892973,0.55,3206.3,3206.1,0.04947179]
[1720933894095,0.55,3206.3,3206.1,0.01947179]
[1720933894303,0.55,3206.3,3206.1,0.04847179]
[1720933895202,2.2646,3206.2,3206.1,0.04847179]
[1720933895387,6.1625446,3206.2,3206.1,0.04847179]
[1720933896079,6.1625446,3206.2,3204.6,3.1205]
[1720933896257,6.4894315,3206.2,3205.7,0.04857161]
[1720933896462,0.55,3206.1,3205.7,0.04857161]
[1720933896663,0.64894315,3206.0,3205.7,0.04857161]
[1720933897260,0.55,3205.9,3205.7,0.04857161]
[1720933897793,0.55,3205.9,3205.6,0.04859437]
[1720933898176,4.7816,3205.8,3205.6,0.04859437]
[1720933898504,3.55,3205.7,3205.6,0.04859437]
[1720933898664,4.38316,3205.7,3205.6,0.04859437]
[1720933899807,4.38316,3205.7,3203.9,7.02233925]
[1720933900110,4.38316,3205.7,3205.6,0.04707247]
[1720933900270,2.2646,3205.3,3203.9,7.02233925]
[1720933900467,2.2646,3205.3,3203.2,2.4206]
[1720933900468,1.02816,3205.2,3203.2,2.4206]
[1720933900881,4.02816,3205.2,3203.2,2.4206]
[1720933902978,7.32,3204.9,3203.2,5.4206]
[1720933903180,7.32,3204.9,3203.2,8.54247]
[1720933903181,3.55,3204.8,3203.2,8.54247]
[1720933905012,3.0,3204.8,3203.3,0.0624196]
[1720933905312,3.0,3204.8,3203.6,3.12148]
[1720933905519,3.0,3204.8,3203.7,0.06241556]
[1720933905817,3.0,3204.8,3203.6,3.12148]
[1720933905974,3.47816,3205.2,3203.8,0.06241554]
[1720933906177,3.47816,3205.2,3203.9,0.31837755]
[1720933906729,7.32,3205.4,3204.1,2.4308]
[1720933906878,9.8025,3205.8,3204.2,3.18329501]
[1720933907083,9.8025,3205.8,3204.3,0.06240498]
[1720933907416,9.8025,3205.8,3204.5,0.04164119]
[1720933907926,9.8025,3205.8,3204.7,0.04160622]
[1720933908079,1.063566,3205.6,3204.7,0.04160622]
[1720933908591,2.4825,3205.8,3204.7,0.04160622]
[1720933908785,0.55,3205.7,3204.7,0.04160622]
[1720933908987,2.4825,3205.8,3204.7,0.04160622]
[1720933909216,2.4825,3205.8,3204.6,0.04162371]
[1720933909719,3.0,3205.9,3204.6,0.04162371]
[1720933909919,0.64894315,3206.0,3205.1,0.04145172]
[1720933910227,0.3268869,3206.2,3205.1,0.04145172]
[1720933911017,0.3268869,3206.2,3205.3,0.04137801]
[1720933911224,0.3268869,3206.2,3205.3,0.10376597]
[1720933911382,0.3268869,3206.2,3205.3,0.04137801]
[1720933911584,0.3268869,3206.2,3205.8,0.04128887]
[1720933913804,0.3268869,3206.2,3205.9,2.4308]
[1720933914124,0.3268869,3206.2,3206.0,3.36631889]
[1720933914284,0.3268869,3206.2,3206.0,3.4286882]
[1720933914893,0.3268869,3206.2,3206.1,3.11905]
[1720933915096,7.32,3207.7,3206.3,3.11883]
[1720933915340,7.32,3207.7,3206.1,3.11905]
[1720933915341,0.32678781,3206.6,3206.1,3.11905]
[1720933915535,7.32,3207.7,3206.2,3.45554589]
[1720933915892,0.32679163,3206.6,3206.2,3.45554589]
[1720933916232,7.32,3207.7,3206.2,3.45554589]
[1720933916437,0.32679223,3206.6,3206.2,3.45554589]
[1720933916633,3.0,3207.6,3206.2,3.45554589]
[1720933916940,0.3267897,3206.6,3206.3,0.34555459]
[1720933917093,1.032,3207.5,3206.3,0.34555459]
[1720933917294,0.32678943,3206.6,3206.3,0.34555459]
[1720933917808,0.32679212,3206.6,3206.3,0.34555459]
[1720933918175,0.32679212,3206.6,3206.0,0.24720889]
[1720933918307,0.32679212,3206.6,3206.1,3.11903]
[1720933918999,0.32679212,3206.6,3206.2,0.06236529]
[1720933919207,0.32679212,3206.6,3206.1,3.11903]
[1720933919728,0.32679212,3206.6,3206.0,3.36634889]
[1720933919935,0.32679212,3206.6,3206.1,0.57971489]
[1720933920091,0.32679212,3206.6,3206.0,3.28805251]
[1720933921101,0.32679212,3206.6,3206.0,0.04084362]
[1720933921322,0.32679212,3206.6,3206.2,0.04078932]
[1720933924455,0.32679212,3206.6,3205.7,3.11942]
[1720933924753,0.32679212,3206.6,3205.9,0.03945426]
[1720933925471,0.32679212,3206.6,3206.0,0.03942622]
[1720933926834,0.32679212,3206.6,3206.1,0.03940875]
[1720933927531,0.32679212,3206.6,3206.0,0.03942622]
[1720933927732,2.4985,3206.5,3206.0,0.03942622]
[1720933927937,0.83252921,3206.4,3206.0,0.03942622]
[1720933928341,3.83252921,3206.4,3206.0,0.03942622]
[1720933929425,2.4985,3206.3,3206.0,0.03942622]
[1720933929626,0.55,3206.2,3206.0,0.03942622]
[1720933930027,3.55,3206.2,3206.0,0.03942622]
[1720933930244,0.60485,3206.1,3204.4,2.3556]
[1720933930451,0.55,3206.0,3204.4,2.3556]
[1720933931023,0.55,3206.0,3204.4,5.4763]
[1720933931354,0.55,3206.0,3204.4,2.3556]
[1720933932448,2.4985,3205.9,3204.2,7.02233925]
[1720933932752,0.85485,3205.8,3204.3,0.70223393]
[1720933932967,3.85485,3205.8,3204.3,0.70223393]
[1720933933149,0.32694278,3205.7,3204.3,0.70223393]
[1720933933742,0.32694278,3205.7,3204.4,3.12063]
[1720933933956,0.32694278,3205.7,3204.5,2.3556]
[1720933934152,0.32694278,3205.7,3204.6,0.547623]
[1720933934875,0.32694278,3205.7,3204.3,3.82298393]
[1720933935563,0.32694278,3205.7,3204.4,3.12069]
[1720933941207,0.32694278,3205.7,3204.3,0.70223393]
[1720933945348,4.2509,3205.6,3204.2,7.02233925]
[1720933945549,1.889,3205.2,3204.2,7.02233925]
[1720933945796,2.3619,3205.1,3204.2,7.02233925]
[1720933945945,0.55,3205.0,3203.5,7.02233925]
[1720933946256,3.55,3205.0,3203.5,7.02233925]
[1720933946463,0.89119,3204.9,3203.5,8.03674218]
[1720933947473,2.3619,3204.7,3203.5,7.02233925]
[1720933947670,5.3619,3204.7,3203.5,7.02233925]
[1720933948562,0.32702271,3204.6,3203.5,7.02233925]
[1720933949084,0.32702271,3204.6,3203.6,3.18388805]
[1720933949299,0.32702271,3204.6,3203.7,3.12137]
[1720933949505,0.32702271,3204.6,3203.8,0.38079061]
[1720933949651,0.32702271,3204.6,3203.9,2.4763]
[1720933949853,0.32702271,3204.6,3204.0,0.0624118]
[1720933950253,0.32601285,3204.6,3204.0,0.0624118]
[1720933951488,0.32601285,3204.6,3203.9,2.53871186]
[1720933951706,0.32601285,3204.6,3204.0,0.28570907]
[1720933952357,0.32601285,3204.6,3204.1,0.0624119]
[1720933953701,0.32601285,3204.6,3204.1,10.14326925]
[1720933956280,0.32601285,3204.6,3204.1,7.02233925]
[1720933960018,0.32601285,3204.6,3204.0,0.28570907]
[1720933960310,0.32601285,3204.6,3203.8,0.31837881]
[1720933963738,0.32601285,3204.6,3203.9,3.12114]
[1720933966016,0.32601285,3204.6,3204.0,3.12109]
[1720933966339,0.32601285,3204.6,3203.8,0.31837881]
[1720933966848,0.32601285,3204.6,3203.9,3.12112]
[1720933967016,0.32601285,3204.6,3204.0,0.34394988]
[1720933967540,0.32601285,3204.6,3204.1,0.06240895]
[1720933968729,0.32601285,3204.6,3204.2,3.12087]
[1720933969448,0.32601285,3204.6,3204.3,0.06240509]
[1720933969664,0.32601285,3204.6,3204.2,3.12087]
[1720933969961,0.32601285,3204.6,3204.3,0.31832752]
[1720933970110,0.32601285,3204.6,3204.0,6.46497988]
[1720933970906,0.32601285,3204.6,3204.2,7.02233925]
[1720933971142,0.32601285,3204.6,3204.0,6.46497988]
[1720933971359,0.32601285,3204.6,3204.0,6.50404071]
[1720933971506,0.32601285,3204.6,3204.0,3.34394988]
[1720933971713,0.32601285,3204.6,3204.1,0.64651399]
[1720933973545,2.3619,3205.2,3204.1,0.52651399]
[1720933974248,2.3619,3205.2,3203.7,5.60028]
[1720933974459,4.2519,3205.2,3203.6,3.0]
[1720933974833,2.3783,3205.0,3203.5,3.12151]
[1720933975146,2.3783,3205.0,3203.6,3.12148]
[1720933975863,2.3783,3205.0,3203.4,3.12162]
[1720933976020,0.53783,3204.9,3203.5,6.99769433]
[1720933976220,0.53783,3204.9,3203.7,0.03785507]
[1720933977055,0.53783,3204.9,3203.9,0.03784645]
[1720933977642,0.53783,3204.9,3203.5,3.87614433]
[1720933978056,0.53783,3204.9,3204.3,0.03777648]
[1720933978364,0.291613,3204.8,3204.3,0.03777648]
[1720933978661,0.291613,3204.8,3204.6,0.03773281]
[1720933978873,0.291613,3204.8,3203.5,10.02233925]
[1720933979165,2.3783,3204.7,3203.1,7.02233925]
[1720933979464,5.9283,3204.7,3203.1,7.02233925]
[1720933980135,8.63679198,3204.7,3203.1,7.02233925]
[1720933980334,2.70849198,3204.6,3203.1,7.02233925]
[1720933980533,3.0,3204.5,3203.1,7.02233925]
[1720933980789,0.3,3204.4,3203.2,1.01443993]
[1720933982569,0.3,3204.4,3203.3,0.06242409]
[1720933982783,3.0,3204.6,3203.2,1.01443993]
[1720933982972,2.3783,3204.7,3203.5,3.12158]
[1720933983339,2.3783,3204.7,3203.3,3.12171]
[1720933983540,2.3783,3204.7,3203.4,3.12167]
[1720933984278,2.3783,3204.7,3203.5,0.06241667]
[1720933984445,0.34706534,3204.6,3203.6,0.31840867]
[1720933984662,3.34706534,3204.6,3203.7,0.06241669]
[1720933985056,3.34706534,3204.6,3203.6,0.31840867]
[1720933986878,3.34706534,3204.6,3203.7,0.06241674]
[1720933988183,3.34706534,3204.6,3203.5,3.18397675]
[1720933988389,0.57253653,3204.5,3203.5,3.12156]
[1720933988678,0.57253653,3204.5,3203.2,1.01443993]
[1720933988980,0.57253653,3204.5,3202.9,2.4789]
[1720933989480,0.57253653,3204.5,3203.2,3.12187]
[1720933990050,2.4594,3204.4,3202.8,3.0]
[1720933990282,4.3494,3204.4,3202.8,3.0]
[1720933990472,3.49219365,3204.3,3202.8,3.0]
[1720933990882,2.4594,3204.2,3202.8,3.0]
[1720933991394,3.49219365,3204.3,3202.6,12.45]
[1720933991395,1.89,3204.0,3202.6,12.45]
[1720933991595,2.4594,3203.9,3202.6,12.45]
[1720933993773,2.4594,3203.9,3202.6,15.57241]
[1720933994097,0.49219365,3204.3,3203.2,3.18427884]
[1720933994304,2.4594,3204.4,3203.3,0.06242292]
[1720933994305,5.4594,3204.4,3203.3,0.06242292]
[1720933994458,2.4594,3204.4,3203.3,0.06242292]
[1720933995894,2.4594,3204.4,3203.3,3.18415292]
[1720933996059,3.04004653,3204.4,3203.4,0.70082368]
[1720933996262,3.0,3204.5,3203.5,0.06242295]
[1720933996465,3.0,3204.8,3203.5,0.06242295]
[1720933997095,3.0,3204.8,3203.6,3.12146]
[1720933997259,3.0,3204.8,3203.7,0.06241661]
[1720933997460,2.4594,3204.9,3203.7,3.18377661]
[1720933997698,2.4594,3205.3,3203.7,3.18377661]
[1720933997903,2.4594,3205.3,3204.0,3.12108]
[1720933998076,2.4594,3205.3,3204.1,0.06241018]
[1720933999199,2.4594,3205.3,3204.2,3.12088]
[1720933999385,2.4594,3205.3,3204.3,3.50150385]
[1720934000202,3.0,3205.5,3204.3,3.50153385]
[1720934000422,5.4594,3205.7,3204.5,3.12052]
[1720934000629,5.4594,3205.7,3204.6,3.18289978]
[1720934000630,2.4594,3205.7,3204.6,3.18289978]
[1720934000911,0.24594,3205.6,3204.6,3.1205]
[1720934001119,3.24594,3205.6,3204.6,3.1205]
[1720934002912,3.24594,3205.6,3204.4,3.12063]
[1720934003713,3.24594,3205.6,3204.3,3.43912902]
[1720934004224,3.24594,3205.6,3204.0,2.4533]
[1720934004524,0.55,3205.5,3204.0,2.4533]
[1720934005114,0.55,3205.5,3203.9,3.0]
[1720934005921,0.55,3205.5,3204.0,3.12109]
[1720934006516,0.55,3205.5,3203.8,3.12122]
[1720934006692,2.894394,3205.4,3203.9,3.433312]
[1720934006889,3.0,3205.3,3203.9,3.12119]
[1720934007108,2.3258,3205.2,3203.6,3.12145]
[1720934007290,0.55,3205.1,3203.6,3.12145]
[1720934007480,3.55,3205.1,3203.6,3.12145]
[1720934007685,0.58758,3205.0,3203.6,3.733595]
[1720934008616,0.58758,3205.0,3203.5,6.12157]
[1720934008814,0.58758,3205.0,3203.5,3.0]
[1720934009183,0.58758,3205.0,3203.4,3.12168]
[1720934009488,0.58758,3205.0,3203.6,3.12148]
[1720934010107,2.3258,3204.9,3203.2,3.82408393]
[1720934010292,0.55,3204.8,3203.3,7.75174232]
[1720934010492,3.55,3204.8,3203.3,7.75174232]
[1720934012094,2.3258,3204.7,3203.3,4.75174232]
[1720934012321,5.3258,3204.7,3203.3,3.12177]
[1720934012999,5.3258,3204.7,3204.4,0.03539828]
[1720934013734,3.0,3204.7,3204.4,0.03539828]
[1720934013938,2.8758,3204.6,3204.4,0.03539828]
[1720934014227,2.61338,3204.5,3204.4,0.03539828]
[1720934014398,5.61338,3204.5,3204.4,0.03539828]
[1720934014599,6.16338,3204.5,3204.4,0.03539828]
[1720934015845,5.61338,3204.5,3204.4,0.03539828]
[1720934016492,5.61338,3204.5,3204.3,0.03541577]
[1720934016690,0.561338,3204.4,3204.3,0.03541577]
[1720934017426,0.561338,3204.4,3203.2,3.12186]
[1720934017638,0.561338,3204.4,3203.6,0.03553823]
[1720934020802,0.561338,3204.4,3203.8,0.03550323]
[1720934021200,0.561338,3204.4,3204.0,0.03546824]
[1720934021435,0.6174718,3204.3,3204.0,0.03546824]
[1720934023458,0.6174718,3204.3,3204.1,0.03545075]
[1720934029952,2.2989,3204.2,3204.1,0.03545075]
[1720934030253,5.2989,3204.2,3204.1,0.03545075]
[1720934030465,5.8489,3204.2,3204.1,0.03545075]
[1720934030751,6.68453718,3204.2,3204.1,0.03545075]
[1720934030959,6.68453718,3204.2,3202.4,6.12264]
[1720934031139,0.55,3204.1,3203.9,0.0355682]
[1720934031337,3.55,3204.1,3203.9,0.0355682]
[1720934031665,3.26735372,3204.0,3203.9,0.0355682]
[1720934031862,6.81735372,3204.0,3203.9,0.0355682]
[1720934035962,6.81735372,3204.0,3202.3,9.43673925]
[1720934036144,3.55,3203.9,3202.3,9.43673925]
[1720934037444,3.55,3203.9,3202.3,7.02233925]
[1720934037445,2.2989,3203.8,3202.3,7.02233925]
[1720934037645,1.89,3203.6,3202.3,7.02233925]
[1720934042061,3.0,3203.7,3202.3,7.02233925]
[1720934042470,3.0,3203.7,3202.3,10.14508925]
[1720934042675,3.0,3203.7,3202.5,2.3403]
[1720934045187,2.2989,3203.8,3202.6,3.12244]
[1720934045755,2.2989,3203.8,3202.5,5.46285]
[1720934046575,2.2989,3203.8,3202.6,7.02233925]
[1720934047259,2.2989,3203.8,3202.5,2.3403]
[1720934047621,2.2842,3204.2,3202.6,0.64774589]
[1720934047749,2.8342,3204.2,3202.6,0.64774589]
[1720934047949,3.0,3204.1,3202.6,0.64774589]
[1720934048575,3.0,3204.1,3202.6,3.77013589]
[1720934049485,3.0,3204.1,3202.7,0.06243488]
[1720934049667,3.58342,3204.1,3202.8,0.38325708]
[1720934050798,1.89,3203.6,3202.1,5.46325]
[1720934050960,1.89,3203.6,3202.1,2.3403]
[1720934051304,2.8342,3203.5,3201.8,9.36263925]
[1720934051467,1.89,3203.2,3201.4,2.7871217]
[1720934051658,1.89,3203.2,3201.4,5.9106917]
[1720934051973,0.55,3203.1,3201.4,5.9106917]
[1720934052392,2.2842,3203.0,3201.5,0.0624556]
[1720934052705,2.2842,3203.0,3201.3,3.12372]
[1720934052706,5.2842,3203.0,3201.3,3.12372]
[1720934052906,0.58342,3202.9,3201.3,3.12372]
[1720934053425,3.58342,3202.9,3201.3,3.12372]
[1720934053783,3.58342,3202.9,3201.4,3.0]
[1720934055953,3.58342,3202.9,3201.0,2.3403]
[1720934055954,4.7242,3202.8,3201.0,2.3403]
[1720934056427,3.0,3202.7,3201.0,2.3403]
[1720934057105,3.0,3202.7,3201.2,3.12382]
[1720934057312,3.0,3202.7,3201.0,5.46426]
[1720934057609,3.0,3202.7,3201.1,3.12391]
[1720934058275,3.0,3202.7,3201.0,2.3403]
[1720934059374,0.55,3202.6,3201.0,2.3403]
[1720934059570,4.1742,3202.4,3200.9,3.0]
[1720934059777,3.0,3202.3,3200.7,3.0]
[1720934060321,3.0,3202.3,3200.6,2.3403]
[1720934060676,3.0,3202.3,3200.6,5.46464]
[1720934061081,3.0,3202.3,3200.7,3.12431]
[1720934061516,3.0,3202.3,3200.8,3.12417]
[1720934062291,3.0,3202.3,3200.6,2.3403]
[1720934062497,3.0,3202.3,3200.6,5.46471]
[1720934063915,3.0,3202.3,3200.6,2.3403]
[1720934064116,1.89,3202.0,3200.6,2.3403]
[1720934065532,1.89,3202.0,3200.4,7.02233925]
[1720934065742,3.0161,3201.9,3200.4,7.02233925]
[1720934066031,3.0,3201.8,3200.4,7.02233925]
[1720934066199,4.34061,3201.8,3200.4,7.02233925]
[1720934068221,4.34061,3201.8,3199.9,9.46153925]
[1720934068428,3.80671,3201.8,3199.9,9.46153925]
[1720934068659,6.80671,3201.8,3199.9,9.46153925]
[1720934070336,2.4661,3201.7,3199.9,9.46153925]
[1720934070537,1.89,3201.4,3200.0,0.94615393]
[1720934070736,0.55,3201.3,3200.0,1.00864492]
[1720934071662,1.89,3201.4,3200.0,1.00864492]
[1720934071859,3.0,3201.5,3200.0,1.00864492]
[1720934072071,3.680671,3201.6,3200.0,0.94615393]
[1720934072231,0.55,3201.5,3200.1,1.35327832]
[1720934072438,1.89,3201.3,3200.1,1.35327832]
[1720934072659,0.55,3201.2,3200.1,1.35327832]
[1720934072839,1.89,3201.3,3200.1,1.35327832]
[1720934075188,3.0161,3201.2,3199.9,2.4392]
[1720934075357,3.0,3201.1,3199.9,2.4392]
[1720934076156,2.4661,3200.5,3199.5,7.02233925]
[1720934076488,5.4661,3200.5,3199.5,7.02233925]
[1720934076682,5.4661,3200.5,3199.5,8.96957317]
[1720934077971,5.4661,3200.5,3199.1,2.4392]
[1720934079168,1.89,3200.2,3199.1,2.4392]
[1720934080044,1.89,3200.2,3198.9,7.02233925]
[1720934080250,3.0161,3200.1,3198.9,7.02233925]
[1720934080450,1.89,3199.8,3198.9,7.02233925]
[1720934080658,0.189,3199.7,3198.9,7.02233925]
[1720934080958,0.189,3199.7,3198.5,0.1164693]
[1720934081385,1.89,3199.4,3198.5,0.1164693]
[1720934082695,0.189,3199.7,3198.6,0.06252576]
[1720934082985,3.0,3200.0,3198.7,2.3846]
[1720934083483,3.0,3200.0,3198.7,2.44711556]
[1720934083680,3.0,3200.0,3198.7,2.3846]
[1720934084275,3.0,3200.0,3198.8,0.06251341]
[1720934084449,3.0,3200.0,3198.7,2.3846]
[1720934084645,0.489,3199.9,3198.8,0.551096]
[1720934084852,0.3131,3200.7,3198.8,0.551096]
[1720934084853,2.2947,3201.1,3199.0,3.12589]
[1720934085166,2.2947,3201.1,3198.8,7.57343525]
[1720934085485,2.2947,3200.3,3198.7,2.3846]
[1720934085957,5.2947,3200.3,3198.7,2.3846]
[1720934086384,0.55,3200.2,3198.7,2.3846]
[1720934086682,3.55,3200.2,3198.7,2.3846]
[1720934086886,0.58447,3200.1,3198.7,2.63470693]